bitfinex-derivatives/quotes_SOLF0:USTF0_20260116
["timestamp","ask_amount","ask_price","bid_price","bid_amount"]
[1768576330808,2.17235386,143.59,143.53,9.47967091]
[1768576331305,2.17235386,143.59,143.53,3.20707091]
[1768576331805,2.17235386,143.57,143.53,3.20707091]
[1768576332805,2.17235386,143.57,143.51,3.20707091]
[1768576333494,2.17235386,143.55,143.5,6.2739]
[1768576333699,2.17235386,143.55,143.48,9.48157091]
[1768576333904,2.17235386,143.55,143.48,3.20707091]
[1768576334103,263.26,143.6,143.48,3.20707091]
[1768576334104,2.17235386,143.54,143.48,3.20707091]
[1768576334397,2.17235386,143.55,143.5,9.48087091]
[1768576335001,2.17235386,143.55,143.5,3.20707091]
[1768576335714,6.2701,143.59,143.5,3.20707091]
[1768576336409,2.17235386,143.57,143.5,3.20707091]
[1768576336912,2.17235386,143.57,143.5,9.48087091]
[1768576340917,2.17235386,143.57,143.51,6.2734]
[1768576341620,269.5297,143.6,143.51,9.54037004]
[1768576341812,2.17235386,143.57,143.51,9.54037004]
[1768576342719,2.17235386,143.55,143.49,9.54097004]
[1768576343514,2.17235386,143.55,143.5,6.2739]
[1768576344123,2.17235386,143.53,143.48,6.2744]
[1768576344315,360.7925,143.6,143.48,6.2744]
[1768576344514,2.17235386,143.52,143.48,6.2744]
[1768576344720,2.17235386,143.52,143.46,3.26697004]
[1768576345320,2.17235386,143.52,143.48,6.2747]
[1768576346421,2.17235386,143.52,143.47,6.2752]
[1768576346623,360.7925,143.6,143.46,3.26697004]
[1768576346624,2.17235386,143.5,143.46,3.26697004]
[1768576346823,2.17235386,143.5,143.43,3.26697004]
[1768576347219,118.4478,143.59,143.45,3.26697004]
[1768576347421,2.17235386,143.53,143.46,3.26697004]
[1768576347616,2.17235386,143.53,143.46,100.88587004]
[1768576347820,97.5105,143.63,143.46,100.88587004]
[1768576347821,2.17235386,143.54,143.48,3.26697004]
[1768576348411,2.17235386,143.54,143.5,6.2739]
[1768576349525,2.17235386,143.54,143.49,6.2743]
[1768576350116,2.17235386,143.52,143.48,3.26697004]
[1768576350321,2.17235386,143.52,143.47,6.2748]
[1768576350829,2.17235386,143.52,143.48,6.2748]
[1768576351728,2.17235386,143.54,143.49,6.2742]
[1768576351921,2.17235386,143.54,143.47,3.26174009]
[1768576352830,2.17235386,143.54,143.5,6.2738]
[1768576354430,263.4,143.57,143.5,6.2738]
[1768576354632,2.17235386,143.55,143.5,6.2738]
[1768576355428,263.4,143.57,143.5,6.2738]
[1768576355728,2.17235386,143.55,143.51,6.2734]
[1768576355932,2.17235386,143.55,143.48,3.26174009]
[1768576356931,2.17235386,143.55,143.49,6.2739]
[1768576360241,2.17235386,143.53,143.47,9.53694009]
[1768576360547,2.17235386,143.51,143.44,3.26174009]
[1768576361338,2.17235386,143.51,143.45,3.26174009]
[1768576364934,2.17235386,143.51,143.44,6.2762]
[1768576365139,2.17235386,143.49,143.43,3.26174009]
[1768576365739,2.17235386,143.49,143.43,9.53864009]
[1768576366537,2.17235386,143.47,143.43,3.26174009]
[1768576367536,2.17235386,143.47,143.43,9.53864009]
[1768576367740,2.17235386,143.49,143.43,9.53864009]
[1768576367937,2.17235386,143.49,143.43,3.26174009]
[1768576368334,2.17235386,143.49,143.41,3.26174009]
[1768576368530,263.48,143.49,143.41,3.26174009]
[1768576368742,265.65235386,143.49,143.41,3.26174009]
[1768576369936,265.65235386,143.49,143.41,9.53954009]
[1768576370135,265.65235386,143.49,143.41,3.26174009]
[1768576370730,271.92675386,143.49,143.41,3.26174009]
[1768576371844,265.65235386,143.49,143.41,3.26174009]
[1768576374144,271.92675386,143.49,143.41,3.26174009]
[1768576375745,269.7544,143.49,143.41,3.26174009]
[1768576375942,271.92675386,143.49,143.41,3.26174009]
[1768576376447,271.92675386,143.49,143.41,9.53954009]
[1768576377350,263.48,143.49,143.42,3.09607549]
[1768576377945,269.7544,143.49,143.42,3.09607549]
[1768576378546,2.17235386,143.48,143.4,3.09607549]
[1768576379355,2.17879345,143.48,143.4,3.09607549]
[1768576379557,8.45359345,143.48,143.4,9.37437549]
[1768576379950,263.48,143.49,143.44,3.09607549]
[1768576381560,2.17879345,143.53,143.44,3.09607549]
[1768576381753,8.45149345,143.53,143.44,3.09607549]
[1768576381948,263.54,143.52,143.44,3.09607549]
[1768576382559,263.54,143.51,143.44,3.09607549]
[1768576382856,182.9729825,143.58,143.45,3.09607549]
[1768576383056,2.17879345,143.53,143.45,3.09607549]
[1768576383445,2.17879345,143.53,143.45,9.37207549]
[1768576384654,6.2718,143.55,143.45,9.37207549]
[1768576384849,263.52,143.54,143.47,3.09607549]
[1768576386056,265.69879345,143.54,143.47,3.09607549]
[1768576388857,271.97109345,143.54,143.47,3.09607549]
[1768576389162,265.69879345,143.54,143.47,3.09607549]
[1768576390361,6.2727,143.53,143.47,3.09607549]
[1768576390755,265.69879345,143.54,143.44,3.09607549]
[1768576390954,2.17879345,143.52,143.44,3.09607549]
[1768576392058,271.97139345,143.54,143.44,9.37257549]
[1768576392263,271.97139345,143.54,143.45,3.09607549]
[1768576393957,271.97139345,143.54,143.45,9.37217549]
[1768576394164,271.97139345,143.54,143.46,3.09607549]
[1768576395562,2.17879345,143.52,143.43,3.09607549]
[1768576396866,2.17879345,143.5,143.43,3.09607549]
[1768576399766,6.2736,143.51,143.43,3.09607549]
[1768576399969,2.17879345,143.54,143.45,3.09607549]
[1768576400169,263.48,143.53,143.45,3.09607549]
[1768576400771,2.17879345,143.52,143.45,3.09607549]
[1768576401366,2.17879345,143.5,143.45,3.09607549]
[1768576402274,263.48,143.53,143.45,3.09607549]
[1768576402464,265.65879345,143.53,143.45,3.09607549]
[1768576402869,271.93149345,143.53,143.45,3.09607549]
[1768576403471,2.17879345,143.51,143.45,3.09607549]
[1768576404276,8.45239345,143.51,143.45,3.09607549]
[1768576404985,2.17879345,143.51,143.45,3.09607549]
[1768576406371,6.2732,143.52,143.45,3.09607549]
[1768576406565,2.17879345,143.5,143.45,3.09607549]
[1768576407068,263.48,143.51,143.45,3.09607549]
[1768576407573,2.17879345,143.53,143.46,3.16330178]
[1768576407780,265.65879345,143.53,143.46,3.16330178]
[1768576408579,263.48,143.53,143.46,3.16330178]
[1768576408781,263.48,143.53,143.47,6.2751]
[1768576410271,263.48,143.53,143.48,3.2664434]
[1768576411783,263.48,143.53,143.47,6.2751]
[1768576411984,263.48,143.53,143.45,9.5422434]
[1768576412204,2.17879345,143.52,143.45,9.5422434]
[1768576412388,2.17879345,143.52,143.46,3.2664434]
[1768576413980,2.17879345,143.52,143.46,9.5420434]
[1768576415498,263.48,143.53,143.46,9.5420434]
[1768576415692,2.17879345,143.52,143.46,9.5420434]
[1768576418896,2.17879345,143.51,143.46,6.2756]
[1768576420894,2.17879345,143.51,143.44,3.2664434]
[1768576421793,2.17879345,143.51,143.45,6.276]
[1768576422288,2.17879345,143.51,143.44,3.2664434]
[1768576424290,5.21463358,143.5,143.44,3.2664434]
[1768576424489,2.17879345,143.51,143.44,3.2664434]
[1768576424698,5.21452514,143.5,143.44,3.2664434]
[1768576424899,2.17879345,143.51,143.44,3.2664434]
[1768576425100,5.21452514,143.5,143.44,3.2664434]
[1768576425299,2.17879345,143.51,143.44,3.2664434]
[1768576425698,8.45189345,143.52,143.44,3.2664434]
[1768576425892,5.21446919,143.51,143.44,3.2664434]
[1768576426094,8.45189345,143.52,143.44,3.2664434]
[1768576427098,2.17879345,143.5,143.44,3.2664434]
[1768576428497,8.45279345,143.5,143.44,3.2664434]
[1768576430097,2.17879345,143.48,143.39,3.2664434]
[1768576430606,8.45369345,143.48,143.41,3.2664434]
[1768576431600,6.2749,143.48,143.41,3.2664434]
[1768576431806,2.17879345,143.47,143.41,3.2664434]
[1768576432905,8.45419345,143.47,143.41,3.2664434]
[1768576433507,6.2757,143.46,143.41,3.2664434]
[1768576435396,265.67879345,143.47,143.41,3.2664434]
[1768576435602,263.52,143.47,143.41,3.2664434]
[1768576437812,2.17879345,143.46,143.41,3.2664434]
[1768576438710,263.52,143.47,143.41,3.2664434]
[1768576438911,1.87914111,143.52,143.41,3.2664434]
[1768576439218,5.45557949,143.49,143.41,3.2664434]
[1768576439413,5.4550209,143.49,143.41,3.2664434]
[1768576439815,11.7294209,143.49,143.42,6.2774]
[1768576440015,11.7294209,143.49,143.42,9.57069012]
[1768576440807,5.4550209,143.49,143.42,9.57069012]
[1768576441007,5.4550209,143.49,143.43,3.29329012]
[1768576443419,5.4550209,143.49,143.43,9.57019012]
[1768576445023,5.4550209,143.49,143.43,3.29329012]
[1768576446616,5.4550209,143.47,143.41,6.2778]
[1768576447023,5.4550209,143.47,143.4,3.29329012]
[1768576447421,5.4550209,143.47,143.4,9.57159012]
[1768576448524,11.7303209,143.47,143.4,3.29329012]
[1768576448927,11.7303209,143.47,143.37,3.29329012]
[1768576448928,3.27678604,143.46,143.37,3.29329012]
[1768576449423,8.45393486,143.47,143.41,3.29329012]
[1768576449820,6.2739,143.51,143.44,9.56969012]
[1768576450026,6.2739,143.51,143.45,3.29329012]
[1768576450220,3.27678604,143.51,143.45,3.29329012]
[1768576450622,2.17823486,143.5,143.41,3.29329012]
[1768576451820,8.45223486,143.5,143.43,9.57019012]
[1768576452019,2.17823486,143.5,143.43,9.57019012]
[1768576453530,5.4550209,143.5,143.43,9.57019012]
[1768576454120,5.4550209,143.5,143.44,9.56979012]
[1768576454725,2.17823486,143.48,143.42,6.277]
[1768576454933,5.4550209,143.47,143.41,3.29329012]
[1768576455626,5.4550209,143.47,143.39,3.29329012]
[1768576456118,5.4550209,143.45,143.39,3.29329012]
[1768576456322,3.27678604,143.44,143.36,3.29329012]
[1768576456526,5.4550209,143.44,143.36,3.29329012]
[1768576457830,2.17823486,143.42,143.36,3.29329012]
[1768576458829,2.17823486,143.42,143.36,9.57319012]
[1768576465437,2.17823486,143.42,143.31,97.719]
[1768576465438,2.17823486,143.4,143.34,9.34322877]
[1768576465736,2.17823486,143.4,143.34,3.06252877]
[1768576466339,2.17823486,143.4,143.35,6.2804]
[1768576466542,5.39830739,143.41,143.35,9.34292877]
[1768576466850,5.39830739,143.44,143.36,3.06252877]
[1768576467042,3.22007253,143.44,143.36,3.06252877]
[1768576467235,2.17823486,143.43,143.36,3.06252877]
[1768576467640,263.58,143.46,143.39,3.06252877]
[1768576467838,2.17823486,143.45,143.39,3.06252877]
[1768576469645,266.80007253,143.46,143.4,3.06112889]
[1768576469646,263.58,143.46,143.4,3.06112889]
[1768576471052,3.14090488,143.45,143.39,6.2786]
[1768576471746,5.31913974,143.45,143.39,6.2786]
[1768576472352,5.31913974,143.45,143.37,3.06112889]
[1768576473551,11.59533974,143.45,143.38,9.34032889]
[1768576474148,6.2766,143.44,143.38,3.06112889]
[1768576475054,6.2775,143.42,143.36,3.06112889]
[1768576475268,5.31913974,143.41,143.35,6.2801]
[1768576475755,3.14090488,143.41,143.35,9.34122889]
[1768576475956,2.17823486,143.42,143.35,9.34122889]
[1768576476653,2.17823486,143.42,143.36,9.34112889]
[1768576477351,3.14090488,143.43,143.37,6.2795]
[1768576478148,3.14090488,143.43,143.38,6.2791]
[1768576478454,5.31913974,143.45,143.38,9.34022889]
[1768576479958,5.31913974,143.45,143.39,9.33982889]
[1768576480159,263.58,143.46,143.39,9.33982889]
[1768576480960,5.31913974,143.45,143.37,8.45743486]
[1768576481161,5.31913974,143.45,143.37,5.23936375]
[1768576481355,5.31913974,143.45,143.38,3.06112889]
[1768576482267,3.14090488,143.45,143.38,3.06112889]
[1768576482754,3.14090488,143.45,143.38,9.34022889]
[1768576483154,8.45393486,143.46,143.39,3.06112889]
[1768576483568,8.45393486,143.46,143.4,6.2783]
[1768576483864,2.17823486,143.46,143.4,9.33942889]
[1768576485559,273.01610488,143.47,143.4,9.33942889]
[1768576488871,3.14090488,143.49,143.4,3.06112889]
[1768576489770,3.14090488,143.49,143.43,6.2769]
[1768576490471,3.14090488,143.49,143.41,9.33852889]
[1768576490670,3.14090488,143.49,143.41,3.06112889]
[1768576491871,3.14090488,143.49,143.42,6.2774]
[1768576494972,3.14090488,143.49,143.43,9.28775877]
[1768576495778,272.05233486,143.5,143.43,9.28775877]
[1768576496178,275.09621132,143.5,143.43,3.01075877]
[1768576499880,3.04387646,143.5,143.43,3.01075877]
[1768576500881,11.49611132,143.5,143.43,9.28765877]
[1768576501384,11.49562755,143.5,143.43,9.28765877]
[1768576501886,2.17775109,143.48,143.43,3.01075877]
[1768576502285,11.49602755,143.49,143.42,6.2774]
[1768576502481,11.49602755,143.49,143.42,9.28815877]
[1768576502681,11.49602755,143.49,143.4,3.01075877]
[1768576502682,3.04387646,143.47,143.4,3.01075877]
[1768576503485,3.04387646,143.47,143.42,6.2774]
[1768576503788,263.56,143.51,143.43,3.01075877]
[1768576503789,268.78162755,143.51,143.43,3.01075877]
[1768576503982,263.56,143.51,143.43,3.01075877]
[1768576504684,263.56,143.51,143.46,6.2756]
[1768576504890,263.56,143.51,143.46,9.28635877]
[1768576505791,263.56,143.51,143.46,3.01075877]
[1768576506587,2.17775109,143.49,143.43,3.01075877]
[1768576506787,3.04387646,143.48,143.41,6.2778]
[1768576506986,3.04387646,143.48,143.41,9.28855877]
[1768576507788,9.31867646,143.48,143.41,9.28855877]
[1768576507990,3.04387646,143.48,143.41,9.28855877]
[1768576508487,3.04387646,143.48,143.42,3.01075877]
[1768576509087,3.04387646,143.48,143.42,9.28805877]
[1768576510096,3.04387646,143.48,143.4,9.28875877]
[1768576510797,5.22162755,143.48,143.4,3.01075877]
[1768576510986,266.60387646,143.51,143.4,5.18850986]
[1768576511186,3.04387646,143.5,143.41,3.01075877]
[1768576511387,5.22162755,143.49,143.41,3.01075877]
[1768576511895,263.56,143.51,143.41,3.01075877]
[1768576512092,5.22162755,143.5,143.41,3.01075877]
[1768576512288,5.22162755,143.48,143.41,3.01075877]
[1768576512493,11.49662755,143.48,143.41,3.01075877]
[1768576512997,11.49662755,143.48,143.42,6.2774]
[1768576513198,3.04387646,143.48,143.42,9.28815877]
[1768576513887,6.2744,143.49,143.42,9.28815877]
[1768576514087,6.2744,143.49,143.43,3.01075877]
[1768576514797,5.22162755,143.5,143.43,9.28765877]
[1768576514993,263.56,143.51,143.43,3.01075877]
[1768576514994,265.73775109,143.51,143.43,3.01075877]
[1768576515494,263.56,143.51,143.44,3.01075877]
[1768576515689,265.73775109,143.51,143.44,3.01075877]
[1768576516086,5.22162755,143.47,143.4,3.01075877]
[1768576516298,2.17775109,143.48,143.4,3.01075877]
[1768576516496,5.22162755,143.48,143.42,6.2773]
[1768576517396,3.04387646,143.51,143.44,3.01075877]
[1768576517597,3.04387646,143.52,143.44,3.01075877]
[1768576517800,5.22162755,143.52,143.44,3.01075877]
[1768576518107,3.04387646,143.51,143.44,3.01075877]
[1768576518906,3.04387646,143.51,143.44,9.28725877]
[1768576521005,8.45085109,143.52,143.44,6.2765]
[1768576521006,5.22162755,143.5,143.44,6.2765]
[1768576521213,5.22162755,143.5,143.44,9.56360918]
[1768576521414,2.17775109,143.5,143.45,9.56300918]
[1768576521815,5.31822541,143.52,143.45,9.56300918]
[1768576523818,11.59132541,143.52,143.45,3.28710918]
[1768576524020,2.17775109,143.5,143.43,9.56380918]
[1768576524507,5.31822541,143.5,143.43,9.56380918]
[1768576524711,5.31822541,143.5,143.44,6.2765]
[1768576525018,3.14047432,143.5,143.44,9.56360918]
[1768576526722,3.14047432,143.5,143.44,3.28710918]
[1768576526913,2.17775109,143.49,143.44,3.28710918]
[1768576528018,9.41447432,143.5,143.44,3.28710918]
[1768576528416,11.59222541,143.5,143.44,3.28710918]
[1768576528914,3.18835021,143.49,143.42,3.15369989]
[1768576529120,5.3661013,143.48,143.4,3.15369989]
[1768576529308,3.18835021,143.47,143.4,3.15369989]
[1768576529512,2.17775109,143.46,143.4,3.15369989]
[1768576530909,2.17775109,143.46,143.4,9.43159989]
[1768576531815,3.18835021,143.47,143.41,9.43149989]
[1768576532415,2.17775109,143.46,143.4,6.2783]
[1768576533124,5.3661013,143.46,143.39,3.15369989]
[1768576533318,2.17775109,143.44,143.36,3.15369989]
[1768576534518,2.17775109,143.44,143.37,6.2795]
[1768576535122,2.17775109,143.42,143.36,3.15369989]
[1768576536826,2.17775109,143.42,143.36,9.43369989]
[1768576537718,263.52,143.46,143.37,3.15369989]
[1768576537719,2.17775109,143.45,143.37,3.15369989]
[1768576538030,5.3661013,143.45,143.37,3.15369989]
[1768576539825,11.6424013,143.45,143.37,3.15369989]
[1768576540824,11.6424013,143.45,143.37,9.43329989]
[1768576541330,11.6424013,143.45,143.38,9.43279989]
[1768576541527,11.6424013,143.45,143.39,3.15369989]
[1768576542031,5.3661013,143.45,143.39,3.15369989]
[1768576542624,2.17775109,143.43,143.36,3.15369989]
[1768576543020,2.17775109,143.43,143.37,6.2795]
[1768576543529,2.17775109,143.43,143.37,9.43319989]
[1768576544320,3.18835021,143.45,143.38,6.279]
[1768576544630,5.3661013,143.44,143.35,3.15369989]
[1768576545425,2.17775109,143.42,143.35,3.15369989]
[1768576545628,5.3661013,143.42,143.35,3.15369989]
[1768576545830,5.3661013,143.42,143.36,6.2796]
[1768576546028,2.17775109,143.4,143.33,3.15369989]
[1768576547434,2.17775109,143.4,143.36,6.28]
[1768576553153,2.17775109,143.4,143.35,6.2805]
[1768576553551,2.17775109,143.4,143.33,3.15369989]
[1768576553745,2.17775109,143.4,143.33,9.43479989]
[1768576554052,2.17775109,143.4,143.34,3.19118714]
[1768576554848,2.17775109,143.4,143.34,9.47208714]
[1768576556353,2.17775109,143.4,143.32,9.47288714]
[1768576556354,3.17573957,143.39,143.32,9.47288714]
[1768576557049,3.17573957,143.39,143.33,3.19118714]
[1768576557257,2.17775109,143.4,143.34,3.19118714]
[1768576557549,5.35349066,143.4,143.34,3.19118714]
[1768576558055,5.35349066,143.4,143.34,9.47208714]
[1768576558650,3.17573957,143.4,143.34,9.47208714]
[1768576558949,5.35349066,143.4,143.34,9.47208714]
[1768576559941,5.35349066,143.4,143.34,3.19118714]
[1768576560144,2.17775109,143.39,143.34,3.19118714]
[1768576561052,5.35349066,143.4,143.34,3.19118714]
[1768576561351,2.180928,143.39,143.34,3.19118714]
[1768576561752,2.180928,143.39,143.34,9.47208714]
[1768576562157,2.180928,143.39,143.34,3.19118714]
[1768576562348,5.35666757,143.39,143.31,3.19118714]
[1768576562543,97.6325,143.45,143.31,3.19118714]
[1768576562544,2.180928,143.37,143.31,3.19118714]
[1768576563748,2.180928,143.37,143.32,6.2817]
[1768576564644,5.35666757,143.37,143.31,3.19118714]
[1768576564848,2.180928,143.35,143.29,3.19118714]
[1768576565348,2.180928,143.36,143.3,3.19118714]
[1768576565948,2.180928,143.36,143.3,9.47378714]
[1768576566149,2.180928,143.36,143.3,3.19118714]
[1768576566448,5.35666757,143.36,143.3,3.19118714]
[1768576566655,11.63676757,143.36,143.3,3.19118714]
[1768576568159,5.35666757,143.36,143.3,3.19118714]
[1768576569552,5.35666757,143.36,143.3,9.47388714]
[1768576571450,5.35666757,143.36,143.26,97.7547]
[1768576571451,5.35666757,143.34,143.26,3.19118714]
[1768576571958,11.63766757,143.34,143.27,6.2838]
[1768576572955,3.17573957,143.33,143.27,6.2838]
[1768576573156,5.35666757,143.33,143.27,6.2838]
[1768576573857,5.35666757,143.33,143.26,3.19118714]
[1768576574560,3.17573957,143.32,143.24,3.19118714]
[1768576575558,3.17573957,143.3,143.21,20.2500151]
[1768576575760,6.2832,143.29,143.22,9.47698714]
[1768576576854,8.464128,143.29,143.22,9.47698714]
[1768576577050,5.35666757,143.27,143.21,17.05882796]
[1768576578549,11.64086757,143.27,143.21,17.05882796]
[1768576579155,6.2845,143.26,143.21,17.05882796]
[1768576579362,3.17573957,143.26,143.21,6.37152796]
[1768576579758,5.35666757,143.26,143.21,6.37152796]
[1768576580658,3.17573957,143.28,143.21,6.37152796]
[1768576580861,3.17573957,143.27,143.21,6.37152796]
[1768576583661,2.180928,143.28,143.22,3.15204847]
[1768576584067,3.33288291,143.31,143.23,3.15204847]
[1768576584467,3.33288291,143.33,143.25,3.15204847]
[1768576584965,9.61318291,143.36,143.27,3.15204847]
[1768576585162,11.79411091,143.36,143.27,3.15204847]
[1768576585464,11.79411091,143.36,143.27,5.33297647]
[1768576585867,3.33288291,143.35,143.27,5.33297647]
[1768576586771,3.33288291,143.35,143.27,11.61667647]
[1768576587772,3.33288291,143.34,143.27,9.43574847]
[1768576589171,3.31012543,143.33,143.25,9.2877898]
[1768576589475,3.31012543,143.33,143.25,3.0031898]
[1768576589661,3.31012543,143.31,143.23,2.180928]
[1768576589866,3.31012543,143.31,143.22,3.0031898]
[1768576590870,9.59292543,143.3,143.22,3.0031898]
[1768576591174,3.31012543,143.32,143.24,3.0031898]
[1768576591471,9.59332543,143.29,143.22,3.0031898]
[1768576591677,3.31012543,143.29,143.22,3.0031898]
[1768576592077,9.59332543,143.29,143.22,3.0031898]
[1768576593580,5.49105343,143.34,143.24,3.0031898]
[1768576593773,267.15012543,143.34,143.26,3.0031898]
[1768576594784,3.31012543,143.34,143.27,3.0031898]
[1768576595466,3.31012543,143.34,143.27,5.1841178]
[1768576595670,3.31012543,143.34,143.27,11.4680178]
[1768576597075,6.2816,143.33,143.27,3.0031898]
[1768576597584,3.31012543,143.34,143.27,3.0031898]
[1768576597768,9.59112543,143.34,143.27,9.2870898]
[1768576598380,9.59112543,143.34,143.27,3.0031898]
[1768576598882,9.59152543,143.33,143.26,6.2844]
[1768576605085,9.59192543,143.32,143.25,3.0031898]
[1768576608286,3.31012543,143.32,143.25,3.0031898]
[1768576608884,3.31012543,143.32,143.26,6.2844]
[1768576609282,3.31012543,143.32,143.26,9.2875898]
[1768576610482,3.31012543,143.34,143.28,3.0031898]
[1768576611384,3.17199584,143.32,143.26,3.29631326]
[1768576614589,11.63372384,143.35,143.27,3.29631326]
[1768576615086,6.2811,143.34,143.27,9.58021326]
[1768576621786,5.35292384,143.33,143.25,9.58071326]
[1768576622001,3.17199584,143.32,143.25,3.29631326]
[1768576622592,3.17199584,143.3,143.22,3.29631326]
[1768576622998,3.17199584,143.28,143.22,3.29631326]
[1768576623192,5.35292384,143.3,143.22,3.29631326]
[1768576623494,5.35575228,143.3,143.22,3.29631326]
[1768576624797,6.2836,143.28,143.22,3.29631326]
[1768576625500,6.2842,143.27,143.22,3.29631326]
[1768576625691,6.2842,143.27,143.21,6.37152796]
[1768576625893,9.45619584,143.27,143.21,6.37152796]
[1768576626094,9.45619584,143.27,143.21,9.66784122]
[1768576628300,6.2835,143.29,143.22,3.29631326]
[1768576630201,3.17199584,143.33,143.25,3.29631326]
[1768576630394,5.35575228,143.31,143.25,3.29631326]
[1768576630602,5.35575228,143.31,143.22,3.29631326]
[1768576630603,2.18375644,143.29,143.22,3.29631326]
[1768576631301,5.35575228,143.29,143.22,3.29631326]
[1768576631700,5.35575228,143.27,143.21,6.37152796]
[1768576632298,3.17199584,143.26,143.21,6.37152796]
[1768576632611,2.18375644,143.25,143.21,6.37152796]
[1768576633308,5.35575228,143.26,143.21,6.37152796]
[1768576634503,2.18375644,143.24,143.21,6.37152796]
[1768576639904,11.64075228,143.25,143.21,6.37152796]
[1768576641110,9.45739584,143.24,143.21,2.796e-05]
[1768576641317,2.18375644,143.23,143.18,3.29631326]
[1768576641902,2.18375644,143.23,143.16,3.09352092]
[1768576642099,5.35575228,143.24,143.17,3.09352092]
[1768576642613,5.51292551,143.22,143.15,3.09352092]
[1768576643804,2.18375644,143.22,143.15,3.09352092]
[1768576646010,2.18375644,143.21,143.15,3.09352092]
[1768576647005,3.32916907,143.23,143.15,3.09352092]
[1768576647313,2.18375644,143.22,143.15,3.09352092]
[1768576647814,5.51292551,143.22,143.15,3.09352092]
[1768576648019,3.32916907,143.21,143.15,3.09352092]
[1768576648316,9.61586907,143.21,143.15,3.09352092]
[1768576648514,5.2690132,143.2,143.12,3.09352092]
[1768576649810,11.5562132,143.2,143.12,3.09352092]
[1768576650216,9.37245676,143.2,143.12,9.38402092]
[1768576650516,11.5562132,143.2,143.13,3.25061608]
[1768576651912,6.2876,143.19,143.13,3.25061608]
[1768576652510,2.18375644,143.16,143.11,3.25061608]
[1768576652716,2.18375644,143.16,143.07,3.25061608]
[1768576653012,2.18375644,143.16,143.09,6.2919]
[1768576653013,8.47275644,143.16,143.09,6.2919]
[1768576653212,8.47275644,143.16,143.09,9.54251608]
[1768576654819,8.47275644,143.16,143.1,3.25061608]
[1768576657122,5.2690132,143.2,143.11,3.25061608]
[1768576658018,6.2879,143.19,143.12,9.54111608]
[1768576658220,5.2690132,143.2,143.12,9.54111608]
[1768576658617,5.2690132,143.2,143.13,3.25061608]
[1768576659525,9.37235676,143.2,143.13,3.25061608]
[1768576659827,3.08525676,143.2,143.14,3.25061608]
[1768576660922,3.08525676,143.2,143.14,9.54011608]
[1768576661629,2.18375644,143.21,143.15,3.25061608]
[1768576662218,9.37175676,143.22,143.15,3.25061608]
[1768576662515,11.5555132,143.22,143.15,3.25061608]
[1768576663530,3.08525676,143.22,143.15,3.25061608]
[1768576663837,5.2690132,143.25,143.15,3.25061608]
[1768576664126,3.08525676,143.24,143.15,3.25061608]
[1768576664523,9.37055676,143.24,143.16,3.25061608]
[1768576665026,2.18375644,143.23,143.16,3.25061608]
[1768576665320,3.08525676,143.22,143.14,6.2893]
[1768576665522,5.2690132,143.21,143.14,3.25061608]
[1768576666422,9.37235676,143.2,143.14,3.25061608]
[1768576666623,5.2690132,143.19,143.12,6.2902]
[1768576667015,5.2690132,143.19,143.12,9.54081608]
[1768576667824,11.5566132,143.19,143.12,9.54081608]
[1768576668427,9.37285676,143.19,143.12,9.54081608]
[1768576673528,9.53793983,143.21,143.14,3.22796808]
[1768576673728,3.25083983,143.23,143.14,3.22796808]
[1768576673929,5.43459627,143.22,143.14,3.22796808]
[1768576674534,361.8285,143.25,143.14,3.22796808]
[1768576674535,5.43459627,143.2,143.14,3.22796808]
[1768576675131,11.72189627,143.2,143.14,3.22796808]
[1768576675432,11.72189627,143.2,143.13,6.2897]
[1768576677236,9.53853983,143.19,143.12,3.22796808]
[1768576678136,9.53853983,143.19,143.12,9.51856808]
[1768576680042,6.2877,143.19,143.13,3.22796808]
[1768576680343,3.25083983,143.21,143.14,3.22796808]
[1768576680738,2.18375644,143.18,143.12,3.22796808]
[1768576680934,3.25083983,143.17,143.1,3.22796808]
[1768576681134,2.18375644,143.16,143.1,3.22796808]
[1768576681333,3.25083983,143.16,143.1,3.22796808]
[1768576681537,6.2894,143.15,143.1,3.22796808]
[1768576682044,3.25083983,143.14,143.07,3.22796808]
[1768576682244,6.2903,143.13,143.07,3.22796808]
[1768576683536,3.25083983,143.14,143.07,3.22796808]
[1768576684146,9.54063983,143.14,143.07,3.22796808]
[1768576684744,9.54063983,143.14,143.08,3.22796808]
[1768576689052,3.25083983,143.14,143.08,3.22796808]
[1768576690944,5.43924921,143.14,143.08,3.22796808]
[1768576692556,5.43924921,143.14,143.08,9.52016808]
[1768576693255,3.25083983,143.16,143.09,3.22796808]
[1768576693445,11.72854921,143.15,143.09,3.22796808]
[1768576693650,264.12,143.18,143.06,9.52086808]
[1768576693651,5.43924921,143.13,143.06,9.52086808]
[1768576693956,3.25083983,143.12,143.06,3.22796808]
[1768576695056,9.54153983,143.12,143.05,235.16513321]
[1768576695357,5.43924921,143.11,143.04,3.22796808]
[1768576695754,11.73034921,143.11,143.04,3.22796808]
[1768576696152,5.43924921,143.09,143.01,10.73951103]